fUSD/lending_fUSD_20260405
["ID","MTS","AMOUNT","RATE_DAILY","PERIOD"]
[419741241,1775349042284,-500.0,0.00013698,2]
[419741242,1775349042294,-500.0,0.00013698,2]
[419741243,1775349042303,-500.0,0.00013698,2]
[419741244,1775349042314,-500.0,0.00013698,2]
[419741245,1775349042323,-500.0,0.00013698,2]
[419741246,1775349042333,-500.0,0.00013698,2]
[419741247,1775349042342,-500.0,0.00013698,2]
[419741248,1775349042352,-500.0,0.00013698,2]
[419741249,1775349042363,-500.0,0.00013698,2]
[419741250,1775349042372,-500.0,0.00013698,2]
[419741251,1775349042383,-500.0,0.00013698,2]
[419741252,1775349042392,-500.0,0.00013698,2]
[419741253,1775349042402,-500.0,0.00013698,2]
[419741254,1775349042412,-500.0,0.00013698,2]
[419741255,1775349042421,-500.0,0.00013698,2]
[419741256,1775349042431,-500.0,0.00013698,2]
[419741257,1775349042441,-500.0,0.00013698,2]
[419741258,1775349042451,-500.0,0.00013698,2]
[419741259,1775349042460,-500.0,0.00013698,2]
[419741260,1775349042470,-500.0,0.00013698,2]
[419741261,1775349042480,-500.0,0.00013698,2]
[419741262,1775349042490,-500.0,0.00013698,2]
[419741263,1775349042500,-500.0,0.00013698,2]
[419741264,1775349042509,-500.0,0.00013698,2]
[419741265,1775349042519,-500.0,0.00013698,2]
[419741266,1775349042528,-500.0,0.00013698,2]
[419741267,1775349042538,-500.0,0.00013698,2]
[419741268,1775349042547,-500.0,0.00013698,2]
[419741269,1775349042560,-500.0,0.00013698,2]
[419741270,1775349042569,-500.0,0.00013698,2]
[419741271,1775349042579,-522.56929997,0.00013698,2]
[419741272,1775349042589,-500.0,0.00013698,2]
[419741273,1775349042598,-500.0,0.00013698,2]
[419741274,1775349042608,-500.0,0.00013698,2]
[419741275,1775349042617,-500.0,0.00013698,2]
[419741276,1775349042626,-500.0,0.00013698,2]
[419741277,1775349042635,-500.0,0.00013698,2]
[419741278,1775349042645,-500.0,0.00013698,2]
[419741279,1775349042655,-500.0,0.00013698,2]
[419741280,1775349042664,-500.0,0.00013698,2]
[419741281,1775349042674,-500.0,0.00013698,2]
[419741282,1775349042683,-500.0,0.00013698,2]
[419741283,1775349042693,-500.0,0.00013698,2]
[419741284,1775349042702,-500.0,0.00013698,2]
[419741285,1775349042712,-500.0,0.00013698,2]
[419741286,1775349042722,-331.50160891,0.00013698,2]
[419741288,1775349042731,-696.51,0.00013698,2]
[419741290,1775349042741,-696.51,0.00013698,2]
[419741291,1775349042750,-696.51,0.00013698,2]
[419741293,1775349042759,-696.51,0.00013698,2]
[419741294,1775349042768,-696.51,0.00013698,2]
[419741296,1775349042778,-696.51,0.00013698,2]
[419741299,1775349042787,-696.51,0.00013698,2]
[419741300,1775349042796,-696.51,0.00013698,2]
[419741301,1775349042806,-696.51,0.00013698,2]
[419741302,1775349042815,-696.51,0.00013698,2]
[419741303,1775349042825,-696.51,0.00013698,2]
[419741304,1775349042834,-696.51,0.00013698,2]
[419741305,1775349042844,-696.51,0.00013698,2]
[419741306,1775349042853,-696.51,0.00013698,2]
[419741308,1775349042862,-696.51,0.00013698,2]
[419741309,1775349042872,-500.0,0.00013698,2]
[419741311,1775349042883,-500.0,0.00013698,2]
[419741312,1775349042892,-500.0,0.00013698,2]
[419741313,1775349042901,-500.0,0.00013698,2]
[419741314,1775349042910,-500.0,0.00013698,2]
[419741315,1775349042919,-500.0,0.00013698,2]
[419741317,1775349042929,-367.21220791,0.00013698,2]
[419741319,1775349042938,-500.0,0.00013698,2]
[419741320,1775349042947,-500.0,0.00013698,2]
[419741321,1775349042956,-500.0,0.00013698,2]
[419741323,1775349042966,-500.0,0.00013698,2]
[419741325,1775349042976,-500.0,0.00013698,2]
[419741327,1775349042986,-500.0,0.00013698,2]
[419741328,1775349042996,-500.0,0.00013698,2]
[419741329,1775349043005,-561.59815036,0.00013698,2]
[419741330,1775349043014,-500.0,0.00013698,2]
[419741331,1775349043024,-500.0,0.00013698,2]
[419741332,1775349043034,-500.0,0.00013698,2]
[419741333,1775349043044,-500.0,0.00013698,2]
[419741334,1775349043054,-500.0,0.00013698,2]
[419741335,1775349043063,-500.0,0.00013698,2]
[419741336,1775349043073,-500.0,0.00013698,2]
[419741337,1775349043083,-500.0,0.00013698,2]
[419741338,1775349043092,-500.0,0.00013698,2]
[419741339,1775349043102,-500.0,0.00013698,2]
[419741341,1775349043112,-500.0,0.00013698,2]
[419741342,1775349043122,-500.0,0.00013698,2]
[419741343,1775349043131,-500.0,0.00013698,2]
[419741344,1775349043141,-500.0,0.00013698,2]
[419741345,1775349043151,-500.0,0.00013698,2]
[419741346,1775349043161,-500.0,0.00013698,2]
[419741347,1775349043171,-500.0,0.00013698,2]
[419741348,1775349043180,-500.0,0.00013698,2]
[419741349,1775349043191,-500.0,0.00013698,2]
[419741350,1775349043200,-500.0,0.00013698,2]
[419741351,1775349043210,-500.0,0.00013698,2]
[419741352,1775349043220,-500.0,0.00013698,2]
[419741353,1775349043229,-500.0,0.00013698,2]
[419741354,1775349043239,-500.0,0.00013698,2]
[419741355,1775349043249,-500.0,0.00013698,2]
[419741356,1775349043259,-500.0,0.00013698,2]
[419741357,1775349043269,-500.0,0.00013698,2]
[419741358,1775349043279,-500.0,0.00013698,2]
[419741359,1775349043289,-500.0,0.00013698,2]
[419741360,1775349043299,-588.43649444,0.00013698,2]
[419741361,1775349043309,-500.0,0.00013698,2]
[419741362,1775349043319,-500.0,0.00013698,2]
[419741363,1775349043329,-500.0,0.00013698,2]
[419741364,1775349043339,-500.0,0.00013698,2]
[419741365,1775349043349,-500.0,0.00013698,2]
[419741366,1775349043359,-500.0,0.00013698,2]
[419741367,1775349043369,-500.0,0.00013698,2]
[419741368,1775349043379,-500.0,0.00013698,2]
[419741369,1775349043389,-1006.63,0.00013698,2]
[419741370,1775349043398,-1006.63,0.00013698,2]
[419741371,1775349043408,-1006.63,0.00013698,2]
[419741372,1775349043418,-1006.63,0.00013698,2]
[419741373,1775349043428,-1006.63,0.00013698,2]
[419741374,1775349043438,-1006.63,0.00013698,2]
[419741375,1775349043448,-1006.63,0.00013698,2]
[419741376,1775349043458,-1006.63,0.00013698,2]
[419741377,1775349043468,-1006.63,0.00013698,2]
[419741378,1775349043478,-1006.63,0.00013698,2]
[419741379,1775349043488,-1006.63,0.00013698,2]
[419741380,1775349043498,-1006.63,0.00013698,2]
[419741381,1775349043508,-1006.63,0.00013698,2]
[419741382,1775349043518,-1006.63,0.00013698,2]
[419741383,1775349043529,-1006.63,0.00013698,2]
[419741384,1775349043539,-500.0,0.00013698,2]
[419741385,1775349043549,-500.0,0.00013698,2]
[419741386,1775349043559,-500.0,0.00013698,2]
[419741387,1775349043569,-500.0,0.00013698,2]
[419741388,1775349043579,-500.0,0.00013698,2]
[419741389,1775349043590,-500.0,0.00013698,2]
[419741390,1775349043600,-500.0,0.00013698,2]
[419741391,1775349043610,-500.0,0.00013698,2]
[419741392,1775349043621,-500.0,0.00013698,2]
[419741393,1775349043631,-500.0,0.00013698,2]
[419741394,1775349043641,-500.0,0.00013698,2]
[419741395,1775349043651,-529.28576111,0.00013698,2]
[419741396,1775349043661,-150.0,0.00013699,2]
[419741397,1775349043671,-150.0,0.00013699,2]
[419741398,1775349043681,-150.0,0.00013699,2]
[419741399,1775349043691,-166.66,0.00013699,2]
[419741400,1775349043701,-157.49,0.00013699,2]
[419741401,1775349043710,-500.0,0.00013699,2]
[419741402,1775349043720,-500.38142486,0.00013699,2]
[419741403,1775349043730,-500.0,0.00013699,2]
[419741404,1775349043740,-161.88455627,0.00013699,2]
[419741405,1775349043749,-500.0,0.00013699,2]
[419741406,1775349043759,-500.0,0.00013699,2]
[419741407,1775349043768,-500.0,0.00013699,2]
[419741408,1775349043779,-500.0,0.00013699,2]
[419741409,1775349043788,-500.0,0.00013699,2]
[419741410,1775349043798,-500.0,0.00013699,2]
[419741411,1775349043807,-500.0,0.00013699,2]
[419741412,1775349043817,-500.0,0.00013699,2]
[419741413,1775349043826,-500.0,0.00013699,2]
[419741414,1775349043835,-500.0,0.00013699,2]
[419741415,1775349043924,-339.74216551,0.00013699,2]
[419741416,1775349043934,-403.83679365,0.00013699,2]
[419741417,1775349043944,-500.0,0.00013699,2]
[419741418,1775349043954,-500.0,0.00013699,2]
[419741419,1775349043963,-500.0,0.00013699,2]
[419741420,1775349043973,-500.0,0.00013699,2]
[419741421,1775349043982,-500.0,0.00013699,2]
[419741422,1775349043991,-598.74889834,0.00013699,2]
[419741423,1775349044000,-500.0,0.00013699,2]
[419741424,1775349044010,-385.69863661,0.00013699,2]
[419741425,1775349044019,-500.0,0.00013699,2]
[419741426,1775349044029,-500.0,0.00013699,2]
[419741427,1775349044039,-500.0,0.00013699,2]
[419741428,1775349044049,-500.0,0.00013699,2]
[419741429,1775349044059,-500.0,0.00013699,2]
[419741430,1775349044068,-500.0,0.00013699,2]
[419741431,1775349044077,-500.0,0.00013699,2]
[419741432,1775349044087,-500.0,0.00013699,2]
[419741433,1775349044096,-518.91238386,0.00013699,2]
[419741434,1775349044106,-500.0,0.00013699,2]
[419741435,1775349044115,-500.0,0.00013699,2]
[419741436,1775349044124,-163.57511377,0.00013699,2]
[419741437,1775349044133,-500.0,0.00013699,2]
[419741438,1775349044143,-160.32097189,0.00013699,2]
[419741439,1775349044152,-500.0,0.00013699,2]
[419741440,1775349044162,-500.0,0.00013699,2]
[419741441,1775349044171,-500.0,0.00013699,2]
[419741442,1775349044180,-500.0,0.00013699,2]
[419741443,1775349044190,-500.0,0.00013699,2]
[419741444,1775349044200,-500.0,0.00013699,2]
[419741445,1775349044209,-569.02268013,0.00013699,2]
[419741446,1775349044218,-606.98804759,0.00013699,2]
[419741447,1775349044227,-500.0,0.00013699,2]
[419741448,1775349044237,-160.71962936,0.00013699,2]
[419741449,1775349044246,-500.0,0.00013699,2]
[419741450,1775349044255,-500.0,0.00013699,2]
[419741451,1775349044265,-500.0,0.00013699,2]
[419741452,1775349044274,-500.0,0.00013699,2]
[419741453,1775349044284,-164.76948202,0.00013699,2]
[419741454,1775349044293,-500.0,0.00013699,2]
[419741455,1775349044303,-500.0,0.00013699,2]
[419741456,1775349044312,-500.0,0.00013699,2]
[419741457,1775349044322,-500.0,0.00013699,2]
[419741458,1775349044332,-500.0,0.00013699,2]
[419741459,1775349044341,-210.94513658,0.00013699,2]
[419741460,1775349044350,-500.0,0.00013699,2]
[419741461,1775349044360,-500.0,0.00013699,2]
[419741462,1775349044369,-202.5903212,0.00013699,2]
[419741463,1775349044379,-500.0,0.00013699,2]
[419741464,1775349044388,-198.22,0.00013699,2]
[419741465,1775349044397,-1000.0,0.00013699,2]
[419741466,1775349044407,-150.31858386,0.000137,2]
[419741467,1775349044417,-433.0,0.00013741,2]
[419741468,1775349044426,-1252.77431806,0.00013746,2]
[419741469,1775349044435,-1088.73149474,0.0001375,2]
[419741470,1775349044445,-500.0,0.00013765,2]
[419741471,1775349044454,-200.0,0.00013785,2]
[419741472,1775349044464,-1603.70259909,0.00013785,2]
[419741473,1775349044473,-600.0,0.00013794,2]
[419741474,1775349044482,-600.0,0.00013794,2]
[419741475,1775349044491,-1349.37202895,0.000138,2]
[419741476,1775349044501,-166.66,0.00013836,2]
[419741477,1775349044510,-250.0,0.00013849,2]
[419741478,1775349044519,-1511.5547996,0.00013864,2]
[419741479,1775349044529,-2500.0,0.00013864,2]
[419741480,1775349044538,-2500.0,0.00013864,2]
[419741481,1775349044548,-2000.0,0.0001394,2]
[419741482,1775349044558,-2000.0,0.0001394,2]
[419741483,1775349044567,-2000.0,0.0001394,2]
[419741484,1775349044576,-2000.0,0.0001394,2]
[419741485,1775349044585,-2000.0,0.0001394,2]
[419741486,1775349044594,-2000.0,0.0001394,2]
[419741487,1775349044603,-2000.0,0.0001394,2]
[419741488,1775349044612,-2000.0,0.0001394,2]
[419741489,1775349044622,-2000.0,0.0001394,2]
[419741490,1775349044633,-2000.0,0.0001394,2]
[419741491,1775349044643,-2000.0,0.0001396,2]
[419741492,1775349044653,-2000.0,0.0001396,2]
[419741493,1775349044663,-2000.0,0.0001396,2]
[419741494,1775349044673,-2000.0,0.0001396,2]
[419741495,1775349044682,-2000.0,0.0001396,2]
[419741496,1775349044691,-2000.0,0.0001396,2]
[419741497,1775349044701,-2000.0,0.0001396,2]
[419741498,1775349044711,-2000.0,0.0001396,2]
[419741499,1775349044720,-2000.0,0.0001396,2]
[419741500,1775349044730,-2000.0,0.0001396,2]
[419741501,1775349044739,-1487.40127831,0.00013968,2]
[419741502,1775349044748,-150.0,0.00013973,2]
[419741503,1775349044758,-150.0,0.00013973,2]
[419741504,1775349044767,-150.0,0.00013973,2]
[419741505,1775349044776,-166.66,0.00013973,2]
[419741506,1775349044786,-1600.0,0.00013974,2]
[419741507,1775349044795,-39346.91388934,0.00013978,2]
[419741508,1775349044805,-3988.53,0.00014004,2]
[419741509,1775349044815,-9601.90631203,0.00014006,2]
[419741510,1775349044824,-5809.74017073,0.00014055,2]
[419741511,1775349044834,-166.66,0.0001411,2]
[419741512,1775349044843,-200.0,0.00014175,2]
[419741513,1775349044852,-500.0,0.00014198,2]
[419741514,1775349044861,-10000.0,0.00014199,2]
[419741515,1775349044870,-3292.0,0.00014236,2]
[419741516,1775349044879,-166.66,0.00014247,2]
[419741517,1775349044889,-150.0,0.00014247,2]
[419741518,1775349044898,-150.0,0.00014247,2]
[419741519,1775349044907,-150.0,0.00014247,2]
[419741520,1775349044916,-307.87812232,0.00014247,2]
[419741521,1775349044925,-1000.0,0.00014247,2]
[419741522,1775349044935,-1000.0,0.00014247,2]
[419741523,1775349044944,-165.64274187,0.00014247,2]
[419741524,1775349044954,-1000.0,0.00014247,2]
[419741525,1775349044963,-1000.0,0.00014247,2]
[419741526,1775349044972,-1000.0,0.00014247,2]
[419741527,1775349044981,-1002.59758452,0.00014247,2]
[419741528,1775349044991,-1000.0,0.00014247,2]
[419741529,1775349045000,-1000.0,0.00014247,2]
[419741530,1775349045010,-1000.0,0.00014247,2]
[419741531,1775349045021,-1000.0,0.00014247,2]
[419741532,1775349045031,-189.63267035,0.00014247,2]
[419741533,1775349045040,-1000.0,0.00014247,2]
[419741534,1775349045050,-1000.0,0.00014247,2]
[419741535,1775349045059,-1000.0,0.00014247,2]
[419741536,1775349045068,-1000.0,0.00014247,2]
[419741537,1775349045078,-920.32389809,0.00014247,2]
[419741538,1775349045087,-1000.0,0.00014247,2]
[419741539,1775349045098,-501.76874276,0.00014247,2]
[419741540,1775349045107,-1000.0,0.00014247,2]
[419741541,1775349045117,-1000.0,0.00014247,2]
[419741542,1775349045126,-500.0,0.00014247,2]
[419741543,1775349045136,-1000.0,0.00014247,2]
[419741544,1775349045146,-1000.0,0.00014247,2]
[419741545,1775349045155,-1000.0,0.00014247,2]
[419741546,1775349045164,-1000.0,0.00014247,2]
[419741547,1775349045174,-179.88810858,0.00014247,2]
[419741548,1775349045183,-1000.0,0.00014247,2]
[419741549,1775349045192,-1000.0,0.00014247,2]
[419741550,1775349045202,-1000.0,0.00014247,2]
[419741551,1775349045212,-1000.0,0.00014247,2]
[419741552,1775349045221,-1000.0,0.00014247,2]
[419741553,1775349045231,-1000.0,0.00014247,2]
[419741554,1775349045242,-1000.0,0.00014247,2]
[419741555,1775349045252,-502.01968107,0.00014247,2]
[419741556,1775349045261,-1000.0,0.00014247,2]
[419741557,1775349045271,-1000.0,0.00014247,2]
[419741558,1775349045281,-211.98761601,0.00014247,2]
[419741559,1775349045291,-1000.0,0.00014247,2]
[419741560,1775349045300,-1000.0,0.00014247,2]
[419741561,1775349045310,-685.54126071,0.00014247,2]
[419741562,1775349045319,-1000.0,0.00014247,2]
[419741563,1775349045329,-1000.0,0.00014247,2]
[419741564,1775349045338,-392.10429392,0.00014247,2]
[419741565,1775349045347,-1000.0,0.00014247,2]
[419741566,1775349045357,-1000.0,0.00014247,2]
[419741567,1775349045366,-157.7,0.00014261,2]
[419741568,1775349045375,-500.0,0.00014299,2]
[419741569,1775349045385,-500.0,0.00014299,2]
[419741570,1775349045394,-516.99312956,0.00014299,2]
[419741571,1775349045403,-500.0,0.00014299,2]
[419741572,1775349045412,-500.0,0.00014299,2]
[419741573,1775349045422,-500.0,0.00014299,2]
[419741574,1775349045431,-500.0,0.00014299,2]
[419741575,1775349045441,-500.0,0.00014299,2]
[419741576,1775349045450,-325.59829244,0.00014299,2]
[419741577,1775349045460,-556.64,0.00014299,2]
[419741578,1775349045469,-556.64,0.00014299,2]
[419741579,1775349045478,-556.64,0.00014299,2]
[419741580,1775349045487,-556.64,0.00014299,2]
[419741581,1775349045496,-556.64,0.00014299,2]
[419741582,1775349045505,-556.64,0.00014299,2]
[419741583,1775349045515,-500.0,0.00014299,2]
[419741584,1775349045524,-500.0,0.00014299,2]
[419741585,1775349045534,-500.0,0.00014299,2]
[419741586,1775349045545,-500.0,0.00014299,2]
[419741587,1775349045555,-500.0,0.00014299,2]
[419741588,1775349045565,-500.0,0.00014299,2]
[419741589,1775349045574,-500.0,0.00014299,2]
[419741590,1775349045583,-500.0,0.00014332,2]
[419741591,1775349045592,-151.0,0.00014332,2]
[419741592,1775349045602,-200.0,0.00014333,2]
[419741593,1775349045611,-1747.14293231,0.00014333,2]
[419741594,1775349045621,-150.0,0.00014375,2]
[419741595,1775349045631,-150.0,0.00014375,2]
[419741596,1775349045640,-150.0,0.00014375,2]
[419741597,1775349045649,-150.0,0.00014375,2]
[419741598,1775349045659,-150.0,0.00014375,2]
[419741599,1775349045668,-150.0,0.00014375,2]
[419741600,1775349045678,-150.0,0.00014375,2]
[419741601,1775349045688,-150.0,0.00014375,2]
[419741602,1775349045697,-150.0,0.00014375,2]
[419741603,1775349045706,-150.0,0.00014375,2]
[419741604,1775349045716,-150.0,0.00014375,2]
[419741605,1775349045725,-150.0,0.00014375,2]
[419741606,1775349045735,-150.0,0.00014375,2]
[419741607,1775349045744,-150.0,0.00014375,2]
[419741608,1775349045753,-166.66,0.00014384,2]
[419741610,1775349045762,-160.0,0.00014395,2]
[419741612,1775349045772,-600.0,0.00014396,2]
[419741613,1775349045782,-600.0,0.00014396,2]
[419741614,1775349045792,-1406.48,0.000144,2]
[419741615,1775349045801,-713.2,0.000144,2]
[419741616,1775349045810,-150.0,0.00014408,2]
[419741617,1775349045820,-3000.0,0.00014412,2]
[419741618,1775349045830,-804.0322388,0.00014412,2]
[419741619,1775349045840,-150.0,0.00014414,2]
[419741620,1775349045849,-150.0,0.0001443,2]
[419741621,1775349045858,-150.0,0.00014432,2]
[419741622,1775349045868,-150.0,0.00014437,2]
[419741623,1775349045878,-150.0,0.00014441,2]
[419741624,1775349045888,-150.0,0.00014453,2]
[419741626,1775349045897,-794.38,0.00014455,2]
[419741627,1775349045907,-267.02731271,0.00014455,2]
[419741629,1775349045916,-500.0,0.00014455,2]
[419741631,1775349045926,-39346.91388934,0.00014456,2]
[419741632,1775349045934,-1088.73149474,0.00014467,2]
[419741634,1775349045944,-150.0,0.00014469,2]
[419741636,1775349045953,-150.0,0.00014473,2]
[419741638,1775349045963,-150.0,0.00014485,2]
[419741639,1775349045972,-150.0,0.00014489,2]
[419741640,1775349045981,-150.0,0.00014492,2]
[419741641,1775349045991,-789.72,0.00014493,2]
[419741642,1775349046000,-417.0959856,0.00014493,2]
[419741643,1775349046009,-500.0,0.00014493,2]
[419741644,1775349046019,-696.51,0.00014493,2]
[419741645,1775349046029,-1006.63,0.00014493,2]
[419741646,1775349046038,-150.0,0.00014498,2]
[419741647,1775349046047,-150.0,0.00014506,2]
[419741648,1775349046057,-2000.0,0.00014511,2]
[419741649,1775349046067,-150.0,0.00014531,2]
[419741650,1775349046076,-150.0,0.00014538,2]
[419741651,1775349046085,-150.0,0.00014541,2]
[419741652,1775349046095,-150.0,0.00014546,2]
[419741653,1775349046105,-150.0,0.00014553,2]
[419741654,1775349046114,-150.0,0.00014553,2]
[419741655,1775349046123,-150.0,0.0001456,2]
[419741656,1775349046133,-150.0,0.00014563,2]
[419741657,1775349046142,-150.0,0.0001457,2]
[419741658,1775349046151,-150.0,0.00014571,2]
[419741659,1775349046160,-256.34,0.0001459,2]
[419741660,1775349046170,-150.0,0.00014596,2]
[419741661,1775349046180,-150.0,0.00014604,2]
[419741662,1775349046190,-150.0,0.00014604,2]
[419741663,1775349046199,-150.0,0.00014609,2]
[419741664,1775349046208,-150.0,0.00014621,2]
[419741665,1775349046217,-150.0,0.00014636,2]
[419741666,1775349046227,-150.0,0.00014648,2]
[419741667,1775349046236,-150.0,0.00014651,2]
[419741668,1775349046246,-150.0,0.00014657,2]
[419741669,1775349046255,-150.0,0.00014661,2]
[419741670,1775349046264,-150.0,0.00014669,2]
[419741671,1775349046274,-5809.74017073,0.0001467,2]
[419741672,1775349046284,-150.0,0.00014683,2]
[419741673,1775349046294,-150.0,0.00014687,2]
[419741674,1775349046303,-150.0,0.00014701,2]
[419741675,1775349046313,-951.80012892,0.00014705,2]
[419741676,1775349046322,-150.0,0.00014706,2]
[419741677,1775349046332,-150.0,0.00014718,2]
[419741678,1775349046342,-291.01629787,0.00014723,2]
[419741679,1775349046352,-150.92857356,0.00014723,2]
[419741680,1775349046362,-171.8117118,0.00014723,2]
[419741681,1775349046371,-150.0,0.00014726,2]
[419741682,1775349046381,-150.0,0.0001473,2]
[419741683,1775349046390,-150.0,0.0001473,2]
[419741684,1775349046400,-1597.63953293,0.00014731,2]
[419741685,1775349046410,-803.00532685,0.00014731,2]
[419741686,1775349046420,-150.0,0.00014734,2]
[419741687,1775349046430,-1114.03052997,0.00014738,2]
[419741688,1775349046440,-150.0,0.00014744,2]
[419741689,1775349046450,-1392.95661531,0.00014749,2]
[419741690,1775349046460,-500.76568591,0.00014749,2]
[419741691,1775349046470,-150.0,0.00014751,2]
[419741692,1775349046480,-512.05662033,0.00014757,2]
[419741693,1775349046490,-300.03334014,0.00014757,2]
[419741694,1775349046499,-150.0,0.00014761,2]
[419741695,1775349046509,-150.0,0.00014765,2]
[419741696,1775349046519,-150.0,0.00014767,2]
[419741697,1775349046529,-150.0,0.00014775,2]
[419741698,1775349046538,-727.11140597,0.00014795,2]
[419741699,1775349046548,-1500.0,0.00014795,2]
[419741700,1775349046558,-1501.43710211,0.00014795,2]
[419741701,1775349046568,-1500.0,0.00014795,2]
[419741702,1775349046578,-1597.01949969,0.00014795,2]
[419741703,1775349046588,-1013.6791618,0.00014795,2]
[419741704,1775349046597,-452.51047759,0.00014795,2]
[419741705,1775349046607,-1500.0,0.00014795,2]
[419741706,1775349046618,-501.3800559,0.00014795,2]
[419741707,1775349046627,-500.0,0.00014795,2]
[419741708,1775349046637,-1500.0,0.00014795,2]
[419741709,1775349046647,-1500.0,0.00014795,2]
[419741710,1775349046657,-1500.0,0.00014795,2]
[419741711,1775349046667,-1500.0,0.00014795,2]
[419741712,1775349046677,-1500.0,0.00014795,2]
[419741713,1775349046687,-1500.0,0.00014795,2]
[419741714,1775349046697,-1500.0,0.00014795,2]
[419741715,1775349046706,-1500.0,0.00014795,2]
[419741717,1775349046716,-1500.0,0.00014795,2]
[419741719,1775349046726,-1500.0,0.00014795,2]
[419741720,1775349046736,-1500.0,0.00014795,2]
[419741721,1775349046746,-1500.0,0.00014795,2]
[419741722,1775349046756,-1505.91875893,0.00014795,2]
[419741724,1775349046766,-1500.0,0.00014795,2]
[419741726,1775349046775,-1412.47132242,0.00014795,2]
[419741728,1775349046785,-1500.0,0.00014795,2]
[419741729,1775349046795,-1500.0,0.00014795,2]
[419741730,1775349046805,-1500.0,0.00014795,2]
[419741731,1775349046815,-417.87254797,0.00014795,2]
[419741733,1775349046824,-1534.13936617,0.00014795,2]
[419741734,1775349046834,-1500.0,0.00014795,2]
[419741735,1775349046844,-1500.0,0.00014795,2]
[419741736,1775349046854,-1500.0,0.00014795,2]
[419741737,1775349046864,-1500.0,0.00014795,2]
[419741738,1775349046875,-1500.0,0.00014795,2]
[419741739,1775349046885,-150.0,0.00014799,2]
[419741740,1775349046895,-150.0,0.00014804,2]
[419741741,1775349046906,-150.0,0.00014805,2]
[419741742,1775349046916,-150.0,0.00014816,2]
[419741743,1775349046927,-556.64,0.0001482,2]
[419741744,1775349046937,-167.03,0.0001482,34]
[419741745,1775349046946,-201.49,0.0001482,54]
[419741746,1775349046956,-1751.82507383,0.0001482,2]
[419741747,1775349046966,-1103.7299612,0.0001482,2]
[419741748,1775349046976,-3632.14400173,0.0001482,2]
[419741749,1775349046986,-512.0,0.00014826,3]
[419741750,1775349046996,-150.0,0.00014832,2]
[419741751,1775349047006,-150.0,0.00014832,2]
[419741752,1775349047016,-150.0,0.00014843,2]
[419741753,1775349047027,-150.0,0.00014845,2]
[419741754,1775349047036,-500.0,0.00014858,2]
[419741755,1775349047047,-500.0,0.00014858,2]
[419741756,1775349047056,-500.0,0.00014858,2]
[419741757,1775349047066,-500.0,0.00014858,2]
[419741758,1775349047077,-500.0,0.00014858,2]
[419741759,1775349047087,-500.0,0.00014858,2]
[419741760,1775349047097,-500.0,0.00014858,2]
[419741761,1775349047107,-500.0,0.00014858,2]
[419741762,1775349047117,-500.0,0.00014858,2]
[419741763,1775349047127,-500.0,0.00014858,2]
[419741764,1775349047137,-500.0,0.00014858,2]
[419741765,1775349047146,-500.0,0.00014858,2]
[419741766,1775349047156,-500.0,0.00014858,2]
[419741767,1775349047166,-500.0,0.00014858,2]
[419741768,1775349047176,-500.0,0.00014858,2]